[Event "FRA-ch Youth U18 2018"]
[Site "Agen"]
[Date "2018.04.17"]
[Round "4"]
[White "Da Silva, Alexandre"]
[Black "O'Sullivan, Thomas"]
[Result "0-1"]
[ECO "A48"]
[WhiteElo "1513"]
[BlackElo "2291"]
[Annotator "NA"]
[PlyCount "78"]
[EventDate "2018.??.??"]
[EventType "swiss"]
[EventCountry "FRA"]
[SourceTitle "playchess.com"]
[Source "ChessBase"]
[SourceQuality "1"]
[TimeControl "5400+30"]

1. d4 {[%emt 0:00:00]} Nf6 {[%emt 0:00:18]} 2. Bf4 {[%emt 0:00:00]} g6 {[%emt 0:01:10]} 3. Nf3 {[%emt 0:00:46]} Bg7 {[%emt 0:00:07]} 4. e3 {[%emt 0:00:19]} d6 {[%emt 0:01:59]} 5. Bd3 {[%emt 0:02:26] LiveBook: 8 Games} Nbd7 {[%emt 0:07:10] A48: 1 d4 Nf6 2 Nf3 g6: Torre, London and Colle Systems} (5... c5 6. c3 Nh5 7. Bg5 h6 8. Bh4 cxd4 9. cxd4 g5 10. Bg3 Nc6 11. Nc3 a6 12. a3 Bd7 13. d5 Nxg3 14. dxc6 Nxh1 15. cxd7+ Qxd7 {0-1 (47) Brumen,D (2338)-Martinovic,S (2565) Slovenia 2017}) 6. O-O {[%emt 0:06:54]} Nh5 {[%emt 0:01:06]} 7. Re1 {[%emt 0:09:42]} c5 {[%emt 0:05:50]} 8. c3 {[%emt 0:01:31]} O-O {[%emt 0:04:41]} 9. Bg5 {[%emt 0:05:21]} h6 $146 {[%emt 0:02:45]} ({Predecessor:} 9... Nhf6 10. Nbd2 Qb6 11. Nc4 Qc7 12. e4 b5 13. Na3 c4 14. Bb1 {1-0 (32) Kokanovic,D (2175)-Ilic,S (2212) Banja Vrucica 2013}) 10. Bh4 {[%emt 0:01:09]} Ndf6 {[%emt 0:01:28]} 11. Bxf6 {[%emt 0:06:43]} Nxf6 {[%emt 0:04:18]} 12. Nbd2 {[%emt 0:00:31]} b6 {[%emt 0:07:48]} 13. Ne4 {[%emt 0:06:36]} Nd5 {[%emt 0:06:11]} 14. Qb3 {[%emt 0:07:59]} Nc7 {[%emt 0:05:28]} 15. Ng3 {[%emt 0:03:29]} e5 {[%emt 0:06:21]} 16. dxe5 {[%emt 0:03:58]} dxe5 {[%emt 0:01:10]} 17. Rad1 {[%emt 0:00:46]} Qe7 {[%emt 0:00:42]} 18. Be4 {[%emt 0:06:21]} ({Avoid the trap} 18. Bxg6 $2 Be6 $19) 18... Rb8 {[%emt 0:04:22]} 19. c4 {[%emt 0:01:14]} Be6 {[%emt 0:09:00]} 20. Bd5 {[%emt 0:09:39]} Rfd8 {[%emt 0:02:19]} 21. Ne2 {[%emt 0:01:41]} ({Better is} 21. Bxe6 $11 Nxe6 22. Nd2) 21... Bxd5 {[%emt 0:03:11]} 22. cxd5 {[%emt 0:00:18]} e4 {[%emt 0:00:07]} 23. Nd2 {[%emt 0:06:13]} Nxd5 {[%emt 0:00:23]} 24. Ng3 {[%emt 0:03:42]} Nf6 {[%emt 0:03:56]} 25. Qc2 {[%emt 0:01:07]} Qe6 {[%emt 0:03:42]} 26. Ngxe4 {[%emt 0:05:06]} Nxe4 {[%emt 0:01:10]} 27. Nxe4 {[%emt 0:00:15]} Qxa2 {[%emt 0:00:58]} 28. Nc3 {[%emt 0:00:34]} Qc4 $19 {[%emt 0:00:53]} 29. Ra1 {[%emt 0:01:47]} b5 {[%emt 0:01:37]} 30. Rxa7 {[%emt 0:01:55]} b4 {[%emt 0:03:35]} 31. Ra4 {[%emt 0:00:08]} Rd3 {[%emt 0:01:50]} 32. Qe2 {[%emt 0:04:25]} Bxc3 {[%emt 0:01:18]} 33. bxc3 {[%emt 0:01:43]} Rxc3 {[%emt 0:00:15]} 34. Qxc4 {[%emt 0:00:10]} Rxc4 {[%emt 0:00:10]} 35. Rb1 {[%emt 0:00:20]} Rc2 {[%emt 0:00:46]} 36. Kf1 {[%emt 0:00:19]} b3 {[%emt 0:00:27]} 37. g3 {[%emt 0:02:03]} b2 {[%emt 0:00:29]} 38. Kg2 {[%emt 0:00:58]} Rc1 {[%emt 0:00:14]} 39. Rxb2 {[%emt 0:00:42]} Rxb2 {[%emt 0:00:11]} 0-1

[Event "FRA-ch Youth U18 2018"]
[Site "Agen"]
[Date "2018.04.18"]
[Round "5"]
[White "Nguyen, Vincent"]
[Black "Heliot, Xabi"]
[Result "0-1"]
[ECO "E32"]
[WhiteElo "2234"]
[BlackElo "2160"]
[Annotator "NA"]
[PlyCount "80"]
[EventDate "2018.??.??"]
[EventType "swiss"]
[EventCountry "FRA"]
[SourceTitle "playchess.com"]
[Source "ChessBase"]
[SourceQuality "1"]
[TimeControl "5400+30"]

1. d4 {[%emt 0:00:00]} Nf6 {[%emt 0:00:13]} 2. c4 {[%emt 0:00:00]} e6 {[%emt 0:00:06]} 3. Nc3 {[%emt 0:00:42]} Bb4 {[%emt 0:00:08]} 4. Qc2 {[%emt 0:00:27]} O-O {[%emt 0:00:33]} 5. e4 {[%emt 0:00:31]} d5 {[%emt 0:00:10]} 6. e5 {[%emt 0:00:34]} Ne4 {[%emt 0:00:09]} 7. a3 {[%emt 0:00:19]} Bxc3+ {[%emt 0:00:50]} 8. bxc3 {[%emt 0:00:01]} c5 {[%emt 0:00:58]} 9. Bd3 {[%emt 0:00:22]} cxd4 {[%emt 0:19:26]} 10. cxd4 {[%emt 0:01:17]} Qa5+ {[%emt 0:00:17] LiveBook: 52 Games E32: Nimzo-Indian: Classical (4 Qc2): 4...0-0} 11. Kf1 {[%emt 0:00:19]} Bd7 {[%emt 0:08:13]} 12. Ne2 {[%emt 0:13:56]} f5 {[%emt 0:05:58]} 13. exf6 {[%emt 0:05:14]} Nxf6 {[%emt 0:03:41]} 14. Bd2 {[%emt 0:05:34]} Qd8 {[%emt 0:04:55]} 15. Bg5 {[%emt 0:06:17]} h6 {[%emt 0:03:23] [#]} 16. Bf4 $146 {[%emt 0:13:40]} ({Find the theoretical novelty and annotate with similar games:} 16. Bh4 Nc6 17. cxd5 exd5 18. f3 {1-0 (35) Morozevich,A (2770)-Pelletier,Y (2599) Biel 2012}) 16... dxc4 {[%emt 0:02:38]} 17. Bxc4 {[%emt 0:02:16]} Nc6 {[%emt 0:05:38]} 18. Rb1 {[%emt 0:03:36]} Na5 {[%emt 0:05:09]} 19. Ba2 $15 {[%emt 0:02:23]} (19. Bc7 $1 $16 {[%cal Rc7d8]} Ng4 20. Bxd8 Ne3+ 21. Kg1 Nxc2 22. Bxa5 Nxa3 23. Rc1 (23. Rxb7 Nxc4 24. Rxd7 Nxa5 $11) 23... Nxc4 24. Rxc4) 19... Rc8 {[%emt 0:03:55]} 20. Qd3 {[%emt 0:01:29]} Kh8 {[%emt 0:04:55]} 21. Bd6 {[%emt 0:12:36]} Re8 {[%emt 0:04:52]} 22. Be5 {[%emt 0:07:23]} Bc6 {[%emt 0:02:55]} 23. Ng3 {[%emt 0:10:22]} Bd5 {[%emt 0:05:21]} 24. Bxd5 {[%emt 0:00:44]} Qxd5 {[%emt 0:04:14]} 25. Bxf6 {[%emt 0:03:24]} gxf6 {[%emt 0:00:03]} 26. Qg6 {[%emt 0:01:21]} Qg5 {[%emt 0:00:30]} 27. Qxg5 {[%emt 0:00:21]} hxg5 {[%emt 0:00:05]} 28. Ne4 {[%emt 0:00:45]} Red8 {[%emt 0:01:29]} 29. h4 {[%emt 0:02:24]} g4 {[%emt 0:03:04]} 30. Nxf6 {[%emt 0:00:23]} Rxd4 {[%emt 0:00:14]} 31. g3 {[%emt 0:00:54]} Rc5 {[%emt 0:05:58]} 32. Rb4 {[%emt 0:02:34]} Rxb4 {[%emt 0:00:47]} 33. axb4 {[%emt 0:00:02]} Rc1+ {[%emt 0:00:06]} 34. Kg2 {[%emt 0:00:01]} Rxh1 {[%emt 0:00:06]} 35. Kxh1 {[%emt 0:00:01]} Nc6 {[%emt 0:00:07]} 36. b5 {[%emt 0:01:22]} Nd4 {[%emt 0:00:08]} 37. Nxg4 {[%emt 0:00:04]} Nxb5 {[%emt 0:00:04]} 38. Ne3 {[%emt 0:00:41]} Nd4 {[%emt 0:00:40]} 39. Kg2 {[%emt 0:00:07]} a5 {[%emt 0:00:15]} 40. Kf1 {[%emt 0:00:21]} a4 {[%emt 0:00:08]} 0-1

[Event "FRA-ch Youth U18 2018"]
[Site "Agen"]
[Date "2018.04.18"]
[Round "5"]
[White "Lafortune, Emerick"]
[Black "Trabet, Nicolas"]
[Result "1-0"]
[ECO "A59"]
[WhiteElo "2112"]
[BlackElo "2241"]
[Annotator "NA"]
[PlyCount "119"]
[EventDate "2018.??.??"]
[EventType "swiss"]
[EventCountry "FRA"]
[SourceTitle "playchess.com"]
[Source "ChessBase"]
[SourceQuality "1"]
[TimeControl "5400+30"]

1. d4 {[%emt 0:00:00]} Nf6 {[%emt 0:00:05]} 2. c4 {[%emt 0:00:00]} c5 {[%emt 0:00:04]} 3. d5 {[%emt 0:00:00]} b5 {[%emt 0:00:07]} 4. cxb5 {[%emt 0:00:05]} a6 {[%emt 0:00:04]} 5. bxa6 {[%emt 0:00:06]} g6 {[%emt 0:00:05]} 6. Nc3 {[%emt 0:00:04]} Bxa6 {[%emt 0:00:04]} 7. e4 {[%emt 0:00:07]} Bxf1 {[%emt 0:00:05]} 8. Kxf1 {[%emt 0:00:05]} d6 {[%emt 0:00:06]} 9. Nf3 {[%emt 0:00:08]} Bg7 {[%emt 0:00:05]} 10. g3 {[%emt 0:00:06]} O-O {[%emt 0:00:07]} 11. Kg2 {[%emt 0:00:06]} Nbd7 {[%emt 0:00:03]} 12. a4 {[%emt 0:00:07] A59: Benko/Volga Gambit: White castles by hand} Ra6 {[%emt 0:00:35]} 13. Qc2 {[%emt 0:00:57]} Qa8 {[%emt 0:00:28]} 14. Ra3 {[%emt 0:02:09]} e6 {[%emt 0:03:19]} 15. dxe6 {[%emt 0:03:00]} fxe6 {[%emt 0:00:07] LiveBook: 15 Games [#]} 16. h3 $146 {[%emt 0:05:46]} ({Find the theoretical novelty and annotate with similar games:} 16. Re1 Ng4 17. Nb5 Qb7 18. Bf4 d5 19. exd5 exd5 {1-0 (39) Leitao,R (2623)-Leon Hoyos,M (2579) Istanbul 2012}) 16... d5 {[%emt 0:07:00]} 17. exd5 {[%emt 0:07:07]} exd5 {[%emt 0:10:32]} 18. Re1 {[%emt 0:04:39]} Ne8 {[%emt 0:36:19]} 19. Qd3 {[%emt 0:05:54]} (19. Nb5 $16) 19... Bxc3 {[%emt 0:01:17]} ({Black should try} 19... d4 $14 20. Ne4 Nef6) 20. Qxc3 {[%emt 0:01:51]} ({Much less strong is} 20. Rxc3 $6 Raf6 $14) 20... Rxa4 {[%emt 0:08:01]} 21. Rxa4 {[%emt 0:10:57]} Qxa4 {[%emt 0:00:03]} 22. Bh6 d4 {[%emt 0:00:06]} 23. Qd3 {[%emt 0:02:12]} Ng7 {[%emt 0:00:24]} 24. Re7 {[%emt 0:09:21]} Rf7 {[%emt 0:00:04]} 25. Rxf7 {[%emt 0:00:23]} Kxf7 {[%emt 0:00:01]} 26. Ng5+ {[%emt 0:00:58]} Kg8 {[%emt 0:00:13]} 27. Qe4 {[%emt 0:04:40]} Nf6 {[%emt 0:01:29]} 28. Qe7 {[%emt 0:04:30]} Qa8+ {[%emt 0:01:38]} 29. Kg1 {[%emt 0:01:14]} Qf8 {[%emt 0:00:16]} 30. Qb7 {[%emt 0:04:10]} Nfe8 {[%emt 0:05:41]} 31. Qd5+ $18 {[%emt 0:09:39]} Kh8 {[%emt 0:00:07]} 32. Kf1 {[%emt 0:00:58]} Qe7 {[%emt 0:02:36]} 33. Bxg7+ {[%emt 0:11:20]} Kxg7 {[%emt 0:01:42]} 34. Ne6+ {[%emt 0:00:27]} Kh6 {[%emt 0:01:48]} 35. Nxc5 {[%emt 0:01:19]} Qf6 {[%emt 0:05:38]} 36. Ne4 {[%emt 0:02:47]} Qf5 {[%emt 0:00:51]} 37. Qxf5 {[%emt 0:00:27]} gxf5 {[%emt 0:00:06]} 38. Nd2 {[%emt 0:03:33]} d3 {[%emt 0:01:51]} 39. Nf3 {[%emt 0:00:08]} Nd6 {[%emt 0:00:11]} 40. Ne5 {[%emt 0:00:21]} d2 {[%emt 0:01:05]} 41. Ke2 {[%emt 0:00:14]} Ne4 {[%emt 0:00:08]} 42. Nc4 {[%emt 0:06:39]} d1=Q+ {[%emt 0:00:56]} 43. Kxd1 {[%emt 0:00:13]} Nxf2+ {[%emt 0:00:02]} 44. Ke2 {[%emt 0:00:38]} Nxh3 {[%emt 0:00:22]} 45. b4 {[%emt 0:00:35]} Ng5 {[%emt 0:00:40]} 46. Nd6 {[%emt 0:01:25]} Kg6 {[%emt 0:01:23]} 47. b5 {[%emt 0:00:18]} Ne6 {[%emt 0:00:41]} 48. b6 {[%emt 0:00:48]} Nc5 {[%emt 0:09:06]} 49. Ke3 {[%emt 0:00:16]} Kg5 {[%emt 0:02:13]} 50. Kd4 {[%emt 0:00:33]} Nd7 {[%emt 0:00:58]} 51. b7 {[%emt 0:01:14]} f4 {[%emt 0:03:26]} 52. Ne4+ {[%emt 0:00:20]} Kf5 {[%emt 0:00:48]} 53. gxf4 {[%emt 0:00:05]} Kxf4 {[%emt 0:01:17]} 54. Nf6 {[%emt 0:00:33]} Nb8 {[%emt 0:00:08]} 55. Nxh7 {[%emt 0:00:04]} Kf5 {[%emt 0:00:11]} 56. Kd5 {[%emt 0:00:00]} Nd7 {[%emt 0:00:55]} 57. Nf8 {[%emt 0:00:01]} Nb8 {[%emt 0:00:28]} 58. Kd6 {[%emt 0:00:37]} Na6 {[%emt 0:00:15]} 59. Nd7 {[%emt 0:00:24]} Kg6 {[%emt 0:00:35]} 60. Nc5 {[%emt 0:00:20]} 1-0

[Event "FRA-ch Youth U18 2018"]
[Site "Agen"]
[Date "2018.04.18"]
[Round "5"]
[White "Chachiachvili, Mariam"]
[Black "Salvador, Lucie"]
[Result "0-1"]
[ECO "C01"]
[WhiteElo "1752"]
[BlackElo "1955"]
[Annotator "NA"]
[PlyCount "60"]
[EventDate "2018.??.??"]
[EventType "swiss"]
[EventCountry "FRA"]
[SourceTitle "playchess.com"]
[Source "ChessBase"]
[SourceQuality "1"]
[TimeControl "5400+30"]

1. e4 {[%emt 0:00:00]} e6 {[%emt 0:00:02]} 2. d4 {[%emt 0:00:00]} d5 {[%emt 0:00:05]} 3. exd5 {[%emt 0:00:00]} exd5 {[%emt 0:00:04]} 4. Nf3 {[%emt 0:00:00]} c5 {[%emt 0:00:26] LiveBook: 56 Games} 5. Bb5+ {[%emt 0:01:05]} Bd7 {[%emt 0:03:10]} 6. Qe2+ {[%emt 0:02:19]} Be7 {[%emt 0:01:30]} 7. O-O {[%emt 0:01:17]} a6 {[%emt 0:06:36]} ({Black should try} 7... Nf6 $14) 8. Bxd7+ {[%emt 0:01:04]} Nxd7 {[%emt 0:00:09]} 9. Nc3 {[%emt 0:04:42]} Ngf6 $16 {[%emt 0:04:48]} 10. Re1 {[%emt 0:02:40]} b5 {[%emt 0:04:11]} 11. Bf4 {[%emt 0:01:49]} Nf8 {[%emt 0:12:42]} 12. Rad1 {[%emt 0:26:01]} Ne6 {[%emt 0:08:14]} 13. Be5 {[%emt 0:00:59]} c4 {[%emt 0:05:55]} 14. Bxf6 {[%emt 0:06:23]} Bxf6 {[%emt 0:02:16]} 15. Ne5 {[%emt 0:00:30]} Qd6 {[%emt 0:02:32]} 16. Qg4 {[%emt 0:07:25]} O-O {[%emt 0:08:06]} 17. f4 {[%emt 0:01:42]} Rad8 {[%emt 0:07:02]} 18. Ne2 {[%emt 0:09:07]} Qb6 {[%emt 0:10:31]} 19. Kh1 {[%emt 0:07:05]} g6 {[%emt 0:01:24]} 20. c3 {[%emt 0:05:11]} h5 {[%emt 0:06:11]} 21. Qf3 {[%emt 0:02:11]} Bxe5 {[%emt 0:04:10]} 22. dxe5 {[%emt 0:04:38]} Nc5 {[%emt 0:00:53]} 23. Nd4 {[%emt 0:01:43]} Nd3 {[%emt 0:02:03]} 24. Re2 {[%emt 0:00:20]} b4 {[%emt 0:00:51]} 25. e6 {[%emt 0:02:55]} Rfe8 {[%emt 0:00:47]} 26. exf7+ {[%emt 0:00:10]} Kxf7 {[%emt 0:00:05]} 27. Rxe8 {[%emt 0:00:16]} Kxe8 {[%emt 0:00:58]} 28. Rd2 {[%emt 0:06:34]} bxc3 {[%emt 0:00:30]} 29. bxc3 {[%emt 0:05:37]} Qb1+ {[%emt 0:00:34]} 30. Rd1 {[%emt 0:00:38]} Qxd1+ {[%emt 0:00:43]} 0-1

[Event "FRA-ch Youth U18 2018"]
[Site "Agen"]
[Date "2018.04.18"]
[Round "5"]
[White "El Barbry, Sarah"]
[Black "Milroy, Melena"]
[Result "1/2-1/2"]
[ECO "B01"]
[WhiteElo "1750"]
[BlackElo "1718"]
[Annotator "NA"]
[PlyCount "93"]
[EventDate "2018.??.??"]
[EventType "swiss"]
[EventCountry "FRA"]
[SourceTitle "playchess.com"]
[Source "ChessBase"]
[SourceQuality "1"]
[TimeControl "5400+30"]

1. e4 {[%emt 0:01:42]} d5 {[%emt 0:00:04]} 2. exd5 {[%emt 0:00:04]} Qxd5 {[%emt 0:00:05]} 3. Nf3 {[%emt 0:00:02]} Nc6 {[%emt 0:02:46]} 4. Be2 {[%emt 0:17:20]} Bg4 {[%emt 0:03:06]} 5. O-O {[%emt 0:00:19]} O-O-O {[%emt 0:00:12]} 6. h3 {[%emt 0:00:04]} Bh5 {[%emt 0:14:19]} 7. Nc3 {[%emt 0:01:39]} Qd7 {[%emt 0:00:48]} 8. b4 {[%emt 0:08:57]} f6 {[%emt 0:09:34]} 9. Rb1 {[%emt 0:05:22]} g5 {[%emt 0:05:19]} 10. b5 {[%emt 0:07:36]} Na5 {[%emt 0:08:41]} 11. Nh2 {[%emt 0:00:53]} Bxe2 {[%emt 0:00:43]} 12. Qxe2 {[%emt 0:00:01]} h5 {[%emt 0:00:19]} 13. d3 {[%emt 0:03:56]} g4 {[%emt 0:06:24]} 14. hxg4 {[%emt 0:07:40]} hxg4 {[%emt 0:00:08]} 15. Qxg4 {[%emt 0:00:14]} f5 {[%emt 0:00:24]} 16. Qg3 {[%emt 0:02:51]} e6 {[%emt 0:00:35]} 17. Bf4 {[%emt 0:00:30]} Nf6 {[%emt 0:00:25]} 18. Qe3 {[%emt 0:09:23]} b6 {[%emt 0:08:25]} 19. Rfe1 {[%emt 0:05:19]} Re8 {[%emt 0:00:44]} 20. Be5 {[%emt 0:03:05]} Bd6 {[%emt 0:11:17]} 21. Bxd6 {[%emt 0:05:58]} cxd6 {[%emt 0:00:07]} 22. f3 {[%emt 0:03:09]} Qh7 {[%emt 0:00:55]} 23. Nf1 {[%emt 0:03:33]} Qh1+ 24. Kf2 Rhg8 {[%emt 0:02:18]} 25. Ng3 {[%emt 0:01:15]} Qh4 {[%emt 0:00:18]} 26. Nce2 {[%emt 0:00:23]} Nd5 {[%emt 0:03:08]} 27. Qd4 {[%emt 0:03:04]} f4 {[%emt 0:01:36]} 28. Kg1 {[%emt 0:01:47]} Rxg3 {[%emt 0:01:48]} 29. Nxg3 {[%emt 0:00:52]} Qxg3 {[%emt 0:00:07]} 30. Qf2 {[%emt 0:00:34]} Qg5 {[%emt 0:03:00]} 31. Kf1 {[%emt 0:05:58]} Rh8 {[%emt 0:06:16]} 32. Qg1 {[%emt 0:01:53]} e5 {[%emt 0:02:06]} 33. c4 {[%emt 0:00:35]} Ne3+ {[%emt 0:00:36]} 34. Rxe3 {[%emt 0:00:29]} fxe3 35. Ke2 Rg8 {[%emt 0:00:47]} 36. g4 {[%emt 0:00:05]} Nb7 {[%emt 0:00:56]} 37. Qxe3 {[%emt 0:00:00]} Nc5 {[%emt 0:03:07]} 38. Qxg5 {[%emt 0:00:10]} Rxg5 {[%emt 0:00:06]} 39. Ke3 {[%emt 0:00:11]} Kd7 {[%emt 0:00:34]} 40. Rh1 {[%emt 0:00:01]} Rg7 {[%emt 0:00:29]} 41. d4 {[%emt 0:00:52]} exd4+ 42. Kxd4 Rf7 {[%emt 0:03:10]} 43. Ke3 {[%emt 0:01:17]} Ne6 {[%emt 0:00:37]} 44. Rh5 {[%emt 0:00:26]} Nf4 {[%emt 0:00:34]} 45. Rh6 {[%emt 0:00:59]} Ne6 {[%emt 0:02:19]} 46. Rh5 {[%emt 0:00:05]} Ke7 {[%emt 0:01:07]} 47. Ke4 1/2-1/2

[Event "FRA-ch Youth U18 2018"]
[Site "Agen"]
[Date "2018.04.18"]
[Round "5"]
[White "Joly, Audrey"]
[Black "Lomandong, Noela-Joyce"]
[Result "0-1"]
[ECO "B00"]
[WhiteElo "1686"]
[BlackElo "2053"]
[Annotator "NA"]
[PlyCount "92"]
[EventDate "2018.??.??"]
[EventType "swiss"]
[EventCountry "FRA"]
[SourceTitle "playchess.com"]
[Source "ChessBase"]
[SourceQuality "1"]
[TimeControl "5400+30"]

1. e4 {[%emt 0:00:00]} b6 {[%emt 0:00:02]} 2. d4 {[%emt 0:00:10]} Bb7 {[%emt 0:00:04]} 3. Nc3 {[%emt 0:01:09]} e6 {[%emt 0:01:01]} 4. Bd3 {[%emt 0:02:31]} Nf6 {[%emt 0:01:45]} 5. Nge2 {[%emt 0:04:23]} d5 {[%emt 0:04:56] LiveBook: 21 Games} 6. Bg5 {[%emt 0:09:26]} (6. e5 $14 Nfd7 7. Nf4) 6... Be7 {[%emt 0:02:36]} 7. exd5 {[%emt 0:05:29]} Nxd5 {[%emt 0:09:12]} 8. Bxe7 {[%emt 0:01:19]} Qxe7 {[%emt 0:00:46]} 9. Nxd5 {[%emt 0:06:30]} exd5 {[%emt 0:09:20]} 10. O-O {[%emt 0:01:42]} O-O {[%emt 0:01:40]} 11. Re1 $14 {[%emt 0:03:46]} Qg5 {[%emt 0:01:52]} 12. Ng3 {[%emt 0:02:20]} Nd7 {[%emt 0:02:06]} 13. Qh5 {[%emt 0:07:14]} Qxh5 {[%emt 0:01:06]} 14. Nxh5 {[%emt 0:00:05]} Rae8 {[%emt 0:03:16]} 15. Kf1 {[%emt 0:01:43]} g6 {[%emt 0:06:08]} 16. Nf4 {[%emt 0:03:01]} Nf6 {[%emt 0:02:46]} 17. c3 {[%emt 0:05:01]} Ne4 {[%emt 0:07:12]} 18. Re2 {[%emt 0:04:55]} Nd6 {[%emt 0:10:54]} 19. Rae1 {[%emt 0:03:06]} Rxe2 {[%emt 0:03:22]} 20. Rxe2 {[%emt 0:00:26]} Re8 {[%emt 0:01:19]} 21. Rxe8+ {[%emt 0:01:55]} Nxe8 {[%emt 0:00:18]} 22. Ke2 {[%emt 0:01:01]} c5 {[%emt 0:01:57]} 23. Ke3 {[%emt 0:03:08]} Kg7 {[%emt 0:02:16]} 24. f3 {[%emt 0:05:08]} Nd6 {[%emt 0:04:24]} 25. Nh3 {[%emt 0:05:58]} Kf6 {[%emt 0:02:58]} 26. Nf2 {[%emt 0:04:15]} h5 {[%emt 0:02:18]} 27. Nh3 {[%emt 0:03:16]} Bc6 {[%emt 0:06:39]} 28. Kf4 {[%emt 0:03:35]} Bd7 {[%emt 0:04:20]} 29. Nf2 {[%emt 0:01:25]} Bf5 {[%emt 0:00:59]} 30. Ke3 {[%emt 0:01:38]} Be6 {[%emt 0:01:50]} 31. Bf1 {[%emt 0:03:48]} Nf5+ {[%emt 0:00:31]} 32. Kd3 {[%emt 0:00:08]} Bd7 {[%emt 0:00:21]} 33. Kd2 {[%emt 0:01:57]} cxd4 {[%emt 0:00:06]} 34. Nd1 {[%emt 0:01:14]} dxc3+ {[%emt 0:00:40]} 35. Nxc3 {[%emt 0:00:15]} Ke5 {[%emt 0:00:39]} 36. Nb5 {[%emt 0:00:41]} a6 {[%emt 0:00:41]} 37. Nc3 {[%emt 0:00:05]} b5 {[%emt 0:00:27]} 38. a3 {[%emt 0:00:38]} Bc6 {[%emt 0:01:27]} 39. b4 {[%emt 0:01:26]} Nd6 {[%emt 0:00:17]} 40. Bd3 {[%emt 0:00:56]} Nc4+ {[%emt 0:00:11]} 41. Bxc4 {[%emt 0:00:02]} bxc4 {[%emt 0:01:40]} 42. Ne2 {[%emt 0:01:46]} d4 {[%emt 0:00:12]} 43. Nc1 {[%emt 0:00:34]} Kd5 {[%emt 0:00:23]} 44. Ne2 {[%emt 0:01:13]} c3+ {[%emt 0:00:36]} 45. Kc2 {[%emt 0:00:21]} Kc4 {[%emt 0:00:07]} 46. Nc1 {[%emt 0:00:30]} d3+ {[%emt 0:00:30]} 0-1

[Event "FRA-ch Youth U18 2018"]
[Site "Agen"]
[Date "2018.04.18"]
[Round "5"]
[White "Breysse, Astrid"]
[Black "Bauer, Elise"]
[Result "0-1"]
[ECO "C02"]
[WhiteElo "1409"]
[BlackElo "1489"]
[Annotator "NA"]
[PlyCount "84"]
[EventDate "2018.??.??"]
[EventType "swiss"]
[EventCountry "FRA"]
[SourceTitle "playchess.com"]
[Source "ChessBase"]
[SourceQuality "1"]
[TimeControl "5400+30"]

1. e4 {[%emt 0:00:00]} e6 {[%emt 0:00:08]} 2. d4 {[%emt 0:00:00]} d5 {[%emt 0:00:08]} 3. e5 {[%emt 0:00:03]} c5 {[%emt 0:00:12]} 4. c3 {[%emt 0:00:13]} Nc6 {[%emt 0:00:12]} 5. Nf3 {[%emt 0:00:24]} Nge7 {[%emt 0:01:57]} 6. Be2 {[%emt 0:02:34]} Ng6 {[%emt 0:01:13]} 7. O-O {[%emt 0:01:19]} Be7 {[%emt 0:01:12]} 8. Re1 {[%emt 0:02:45]} O-O {[%emt 0:00:41]} 9. Nbd2 {[%emt 0:01:14]} cxd4 {[%emt 0:03:13]} 10. cxd4 {[%emt 0:01:19]} Bb4 {[%emt 0:02:11]} 11. a3 {[%emt 0:02:37]} Ba5 {[%emt 0:01:56]} 12. b4 {[%emt 0:00:57]} Bb6 {[%emt 0:01:04]} 13. Bb2 {[%emt 0:00:44]} Bd7 {[%emt 0:03:30]} 14. Rc1 {[%emt 0:02:47]} Rc8 {[%emt 0:00:50]} 15. Nb3 {[%emt 0:02:30]} a6 {[%emt 0:04:42]} 16. Qd2 {[%emt 0:06:53]} a5 {[%emt 0:03:12]} 17. b5 {[%emt 0:01:52]} Na7 {[%emt 0:01:13]} 18. a4 {[%emt 0:00:43]} Bc7 {[%emt 0:02:37]} 19. Nc5 {[%emt 0:06:03]} b6 {[%emt 0:05:52]} 20. Nd3 {[%emt 0:04:17]} f5 {[%emt 0:05:02]} 21. Ng5 {[%emt 0:05:02]} h6 {[%emt 0:06:00]} 22. Nh3 {[%emt 0:02:42]} Be8 {[%emt 0:02:44]} 23. Ba3 {[%emt 0:02:32]} Ne7 {[%emt 0:03:07]} 24. Nhf4 {[%emt 0:03:57]} Qd7 {[%emt 0:02:30]} 25. Bh5 {[%emt 0:01:57]} Bd8 {[%emt 0:06:30]} 26. Re3 {[%emt 0:03:53]} g5 {[%emt 0:02:03]} 27. Rg3 {[%emt 0:02:25]} Kh7 {[%emt 0:02:00]} 28. Bxe8 {[%emt 0:01:53]} Rxe8 {[%emt 0:00:25]} 29. Nh5 {[%emt 0:00:16]} Ng6 {[%emt 0:01:38]} 30. Rxc8 {[%emt 0:01:09]} Qxc8 {[%emt 0:03:04]} 31. Bc1 {[%emt 0:00:50]} Be7 {[%emt 0:04:09]} 32. h3 {[%emt 0:05:36]} Qc7 {[%emt 0:02:27]} 33. f4 {[%emt 0:01:37]} Rc8 {[%emt 0:01:32]} 34. fxg5 {[%emt 0:02:09]} hxg5 {[%emt 0:05:08]} 35. Nf6+ {[%emt 0:00:54]} Bxf6 {[%emt 0:01:41]} 36. h4 {[%emt 0:04:22]} Nxh4 {[%emt 0:09:54]} 37. Rh3 {[%emt 0:00:16]} Bd8 {[%emt 0:02:15]} 38. g3 {[%emt 0:02:44]} g4 {[%emt 0:02:05]} 39. Rxh4+ {[%emt 0:01:20]} Bxh4 {[%emt 0:00:24]} 40. gxh4 {[%emt 0:01:05]} Qg7 {[%emt 0:03:04]} 41. Nf4 {[%emt 0:02:58]} Qh6 {[%emt 0:01:18]} 42. Nxd5 {[%emt 0:00:54]} Rxc1+ {[%emt 0:00:32]} 0-1